Expenditure Date,Department,Beneficiary,Amount (�),Summary of purpose of expenditure,Description
01/04/2022,Danes Castle,Amznmktpla,36.64,Standard Equipment,Purchase Amznmktplace
01/04/2022,"Policy, Procedures & Process",Kents Cave,41.00,Catering/Refreshments,Purchase Kents Cavern
01/04/2022,Ivybridge,Amznmktpla,22.49,Standard Equipment,Purchase Amznmktplace
01/04/2022,People & Development,Www.Cranle,355.20,Fitness Equipment Maintenance,Purchase Www.Cranlea.Co.Uk
01/04/2022,Human Resources,Nutritics,345.60,ICT Application Services (Oth),Purchase Nutritics
01/04/2022,Academy Management,Amznmktpla,32.85,Trng Equip Consumables,Purchase Amznmktplace
01/04/2022,Assets & Systems,Resource G,9.59,Licence fees,Purchase Resource Guru
01/04/2022,Customer Services,Subway 556,15.39,Meals for Training Courses,Purchase Subway 55625 Sowton
01/04/2022,Customer Services,Cross Keys,4.69,Meals for Training Courses,Purchase Cross Keys Sf Connect
01/04/2022,Customer Services,Stockmans,11.60,Meals for Training Courses,Purchase Stockmans
01/04/2022,Customer Services,Farmer Lux,8.95,Meals for Training Courses,Purchase Farmer Luxtons
01/04/2022,East & Somerset,Screwfix D,-2.00,Unforseen Maintnce Mats Techn,Credit Voucher Screwfix Dir Ltd
01/04/2022,East & Somerset,Screwfix D,43.97,Unforseen Maintnce Mats Techn,Purchase Screwfix Dir Ltd
01/04/2022,East & Somerset,Tesco Stor,34.15,Catering/Refreshments,Purchase Tesco Store 2487
02/04/2022,Resources Requirement Function,Lyreco UK,8.68,Printing/Stationery/Photocopy,Purchase Lyreco UK Ltd
02/04/2022,Customer Services,Lyreco UK,24.98,Printing/Stationery/Photocopy,Purchase Lyreco UK Ltd
03/04/2022,"Policy, Procedures & Process",McDonalds,11.78,Catering/Refreshments,Purchase McDonalds
03/04/2022,Academy Management,Amznmktpla,23.29,Trng Equip Consumables,Purchase Amznmktplace
04/04/2022,Stock,Safetysign,11.40,Ops Equipment Purchases,Purchase Safetysigns
04/04/2022,Estates,Toolstatio,18.32,Standard Equipment,Purchase Toolstation Uk
04/04/2022,USAR Team,Cotswold O,34.00,Uniforms Other,Purchase Cotswold Outdoor
04/04/2022,Greenbank,Keys Pleas,10.93,Standard Equipment,Purchase Keys Please
04/04/2022,Castle Cary,Www.Firstf,92.41,Unforseen Maintnce Mats Techn,Purchase Www.Firstfence.Co.Uk
04/04/2022,Academy Management,Amznmktpla,21.57,Trng Equip Consumables,Purchase Amznmktplace
04/04/2022,Academy Management,Www.Screwf,42.34,Trng Equip Consumables,Purchase Www.Screwfix.Com
04/04/2022,Academy Management,The Workpl,"1,040.32",Trng Equip Consumables,Purchase The Workplace Depot
04/04/2022,Customer Services,Airdat Ltd,70.00,Driver Tests,Purchase Airdat Ltd
04/04/2022,Customer Services,Co Op Grou,12.80,Meals for Training Courses,Purchase Co Op Group Food
04/04/2022,Customer Services,Cross Keys,4.64,Meals for Training Courses,Purchase Cross Keys Sf Connect
04/04/2022,Customer Services,Southern C,7.50,Meals for Training Courses,Purchase Southern Co-Op 0373
05/04/2022,Public Relations,Shuttersto,22.80,Printing/Stationery/Photocopy,Purchase Shutterstock Ireland Limi
05/04/2022,Public Relations,Dotmailer,350.40,Publications/Subscriptions,Purchase Dotmailer
05/04/2022,Fire Control,Lyreco UK,21.55,Printing/Stationery/Photocopy,Purchase Lyreco UK Ltd
05/04/2022,Network Fire Services Partners,Digicert I,192.77,ICT Desktop Service,Purchase (USD 268.00) Digicert Inc
05/04/2022,Paignton,Toolstatio,30.61,Unforseen Maintnce Mats Techn,Purchase Toolstation Ltd
05/04/2022,Driver Training School,Oph Ltd,4.89,Catering/Refreshments,Purchase Oph Ltd
05/04/2022,Academy Management,Amznmktpla,17.80,Trng Equip Consumables,Purchase Amznmktplace
05/04/2022,Academy Management,Amznmktpla,9.92,Trng Equip Consumables,Purchase Amznmktplace
05/04/2022,Academy Management,Amznmktpla,91.34,Trng Equip Consumables,Purchase Amznmktplace
05/04/2022,Assets & Systems,Bls*monday,33.00,Licence fees,Purchase Bls*monday.Com12017784567
05/04/2022,Customer Services,Oph Ltd,11.63,Meals for Training Courses,Purchase Oph Ltd
05/04/2022,Customer Services,Cross Keys,4.60,Meals for Training Courses,Purchase Cross Keys Sf Connect
05/04/2022,Customer Services,Bovey Sf C,10.83,Meals for Training Courses,Purchase Bovey Sf Connect
05/04/2022,Quality Assurance,South West,540.00,Uniformed Development Training,Purchase South West Lakes Ltd
06/04/2022,Pay for Availability,Burger Piz,20.30,Catering/Refreshments,Purchase Burger Pizza Bistro
06/04/2022,Stock,Hivis Net,34.42,Uniforms Purchase,Purchase Hivis Net
06/04/2022,Operational Assets Management,Dnata Cate,12.60,Catering/Refreshments,Purchase Dnata Catering UK Ezy Gb
06/04/2022,Research & Development,4421,4.10,Catering/Refreshments,Purchase 4421
06/04/2022,Research & Development,Royal Hote,23.90,Hotel Booking,Purchase Royal Hotel
06/04/2022,USAR Team,Marks&spen,27.60,Catering/Refreshments,Purchase Marks&spencer Plc Sf
06/04/2022,West Devon,Lyreco UK,28.11,Printing/Stationery/Photocopy,Purchase Lyreco UK Ltd
06/04/2022,Castle Cary,Bradfords,14.95,Unforseen Maintnce Mats Techn,Purchase Bradfords Building Sup
06/04/2022,Human Resources,Linkedin-7,56.86,Recruitment Advertising,Purchase Linkedin-773
06/04/2022,Academy Management,Amznmktpla,19.94,Trng Equip Consumables,Purchase Amznmktplace
06/04/2022,Academy Management,Beacon Int,145.39,Trng Equip Consumables,Purchase Beacon International Limi
06/04/2022,Academy Management,Amznmktpla,7.49,Trng Equip Consumables,Purchase Amznmktplace
06/04/2022,Academy Management,Amznmktpla,87.45,Trng Equip Consumables,Purchase Amznmktplace
06/04/2022,Academy Management,Amznmktpla,35.27,Trng Equip Consumables,Purchase Amznmktplace
06/04/2022,Customer Services,The Proper,25.90,Meals for Training Courses,Purchase The Proper Fish Chips C
06/04/2022,Customer Services,Amznmktpla,88.66,Meals for Training Courses,Purchase Amznmktplace
06/04/2022,Customer Services,Grubs Up,4.76,Meals for Training Courses,Purchase Grubs Up
06/04/2022,Customer Services,W M Morris,3.43,Meals for Training Courses,Purchase W M Morrison
06/04/2022,Customer Services,Lyreco UK,290.60,Printing/Stationery/Photocopy,Purchase Lyreco UK Ltd
07/04/2022,ICT Delivery,Fasthosts,5.28,ICT Infrastructure Service,Linux PHP Extended Support Service Charg
07/04/2022,Operational Assets Management,Royal Hote,45.35,Hotel Booking,Purchase Royal Hotel
07/04/2022,"Policy, Procedures & Process",Kfc,10.98,Catering/Refreshments,Purchase Kfc
07/04/2022,West Devon,Www.Office,129.95,Standard Equipment,Purchase Www.Officefurnitureonline
07/04/2022,Yelverton,Seton,44.43,Unforseen Maintnce Mats Techn,Purchase Seton
07/04/2022,Driver Training School,Mfg Pilton,5.26,Catering/Refreshments,Purchase Mfg Pilton Bridge
07/04/2022,Assets & Systems,"Typeform,",25.00,Licence fees,"Purchase Typeform, S.L."
07/04/2022,Customer Services,Tesco Pfs,4.30,Meals for Training Courses,Purchase Tesco Pfs 2620
07/04/2022,Customer Services,Mfg Pilton,10.27,Meals for Training Courses,Purchase Mfg Pilton Bridge
07/04/2022,Customer Services,Sainsburys,7.70,Meals for Training Courses,Purchase Sainsburys S/Mkts
08/04/2022,Estates,Www.Screwf,116.66,Standard Equipment,Purchase Www.Screwfix.Com
08/04/2022,Estates,Spare Part,34.97,Standard Equipment,Purchase Spare Parts World
08/04/2022,Estates,Exeter Too,26.79,Standard Equipment,Purchase Exeter Tool Shop
08/04/2022,Operational Assets Management,Gla Burger,15.98,Catering/Refreshments,Purchase Gla Burger King T1
08/04/2022,Operational Assets Management,Dnata Cate,4.60,Catering/Refreshments,Purchase Dnata Catering UK Ezy Gb
08/04/2022,Public Relations,Stk*shutte,22.80,Printing/Stationery/Photocopy,Purchase Stk*shutterstock
08/04/2022,Hartland,Www.Firesa,15.63,Unforseen Maintnce Mats Techn,Purchase Www.Firesafetystore.Co
08/04/2022,Research & Development,Wh Smith,10.29,Publications/Subscriptions,Purchase Wh Smith
08/04/2022,South Devon,Amznmktpla,7.15,Standard Equipment,Purchase Amznmktplace
08/04/2022,South Devon,Lyreco UK,42.23,Printing/Stationery/Photocopy,Purchase Lyreco UK Ltd
08/04/2022,Academy Management,Rock Awnin,"1,355.91",Trng Equip Consumables,Purchase Rock Awnings
08/04/2022,Customer Services,Central Co,11.23,Meals for Training Courses,Purchase Central Convenient Stores
08/04/2022,Customer Services,Southern C,11.49,Meals for Training Courses,Purchase Southern Co-Op 0373
08/04/2022,Customer Services,Central Co,9.33,Meals for Training Courses,Purchase Central Convenient Stores
08/04/2022,Customer Services,Lyreco UK,83.87,Printing/Stationery/Photocopy,Purchase Lyreco UK Ltd
08/04/2022,Prevention Delivery,Lyreco UK,10.70,Printing/Stationery/Photocopy,Purchase Lyreco UK Ltd
09/04/2022,ICT Delivery,Fasthosts,20.98,ICT Infrastructure Service,.co.uk Domain Renewal - somersetfirebrig
09/04/2022,Public Relations,Sghaywood,355.00,External Prof Support/Advice,Purchase Sghaywood Photography
09/04/2022,Prevention Delivery,Lyreco UK,12.18,Printing/Stationery/Photocopy,Purchase Lyreco UK Ltd
11/04/2022,Stock,Amazon.Co.,13.39,Standard Equipment Purchase,Purchase Amazon.Co.Uk
11/04/2022,Fire Headquarters,Exmouth Po,44.00,Unforseen Maintnce Mats Techn,Purchase Exmouth Power Tools
11/04/2022,Public Relations,Eb *founda,834.00,Non-Uniformed Training,Purchase Eb *foundation In Cont
11/04/2022,Danes Castle,Amazon.Co.,34.98,Cleaning/Kitchen Equipment,Purchase Amazon.Co.Uk
11/04/2022,Sidmouth,Exeter Win,332.83,Unforseen Maintnce Mats Techn,Purchase Exeter Window Store
11/04/2022,Sidmouth,Exeter Win,400.00,Unforseen Maintnce Mats Techn,Purchase Exeter Window Store
11/04/2022,West Devon,Www.Maclin,33.87,Standard Equipment,Purchase Www.Maclingroup.Co.Uk
11/04/2022,Plympton,Toolstatio,8.85,Unforseen Maintnce Mats Techn,Purchase Toolstation Ltd
11/04/2022,Academy Management,Amznmktpla,15.87,Trng Equip Consumables,Purchase Amznmktplace
11/04/2022,Academy Management,Amznmktpla,29.09,Trng Equip Consumables,Purchase Amznmktplace
11/04/2022,Academy Management,Amznmktpla,5.08,Trng Equip Consumables,Purchase Amznmktplace
11/04/2022,Customer Services,Central Co,3.99,Meals for Training Courses,Purchase Central Convenient Stores
11/04/2022,Customer Services,Balasai Lt,12.32,Meals for Training Courses,Purchase Balasai Ltd
12/04/2022,Stock,Safetysign,17.16,Ops Equipment Purchases,Purchase Safetysigns
12/04/2022,ICT Delivery,Amznmktpla,27.18,ICT Desktop Service,Purchase Amznmktplace
12/04/2022,ICT Delivery,Amznmktpla,11.67,ICT Desktop Service,Purchase Amznmktplace
12/04/2022,Chelston Vehicle Engineering,Wellington,114.00,Garage Equipment,Purchase Wellington Weld Supps Lt
12/04/2022,Chelston Vehicle Engineering,Truckman,9.32,Direct Replacmnt Parts-Defects,Purchase Truckman
12/04/2022,Exeter Group,Lyreco UK,113.08,Printing/Stationery/Photocopy,Purchase Lyreco UK Ltd
12/04/2022,USAR Team,Gloucester,14.70,Catering/Refreshments,Purchase Gloucester Services North
12/04/2022,USAR Team,Gusto Live,35.95,Catering/Refreshments,Purchase Gusto Liverpool
12/04/2022,USAR Dog,Oscars Hon,53.29,USAR Dog Expenses,Purchase Oscars Honiton R/T Cur
12/04/2022,Plympton,Toolstatio,19.32,Unforseen Maintnce Mats Techn,Purchase Toolstation Ltd
12/04/2022,Dartmouth,Www.Suigen,88.07,Unforseen Maintnce Mats Techn,Purchase Www.Suigeneris.Co.Uk
12/04/2022,Driver Training School,Iz *four E,3.50,Catering/Refreshments,Purchase Iz *four Elements
12/04/2022,Academy Management,Amazon.Co.,59.99,Standard Equipment,Purchase Amazon.Co.Uk
12/04/2022,Academy Management,Amazon.Co.,59.99,Trng Equip Consumables,Purchase Amazon.Co.Uk
12/04/2022,Academy Management,Amz*amazon,-23.21,Trng Equip Consumables,Credit Voucher Amz*amazon.Co.Uk
12/04/2022,Assets & Systems,Amznmktpla,44.99,Audio Visual Equipment,Purchase Amznmktplace
12/04/2022,Customer Services,Tesco Pfs,3.82,Meals for Training Courses,Purchase Tesco Pfs 3708
12/04/2022,Customer Services,Tesco Pfs,3.70,Meals for Training Courses,Purchase Tesco Pfs 2620
12/04/2022,Customer Services,The Proper,16.65,Meals for Training Courses,Purchase The Proper Fish Chips C
12/04/2022,Customer Services,Tesco Pfs,3.50,Meals for Training Courses,Purchase Tesco Pfs 3708
12/04/2022,Customer Services,Bovey Sf C,4.59,Meals for Training Courses,Purchase Bovey Sf Connect
12/04/2022,Customer Services,Lyreco UK,21.72,Printing/Stationery/Photocopy,Purchase Lyreco UK Ltd
12/04/2022,Prevention Delivery,Brewers Fa,14.49,Catering/Refreshments,Purchase Brewers Fayre41020025
13/04/2022,Estates,Jewson Ltd,2.50,Unforseen Maintnce Mats Techn,Purchase Jewson Ltd
13/04/2022,USAR Team,Gloucester,15.30,Catering/Refreshments,Purchase Gloucester Services South
13/04/2022,USAR Team,Hotel Ibis,10.00,Hotel Booking,Purchase Hotel Ibis
13/04/2022,West Devon,Lyreco UK,85.73,Printing/Stationery/Photocopy,Purchase Lyreco UK Ltd
13/04/2022,Dartmouth,Exmouth Po,2.07,Unforseen Maintnce Mats Techn,Purchase Exmouth Power Tools
13/04/2022,Driver Training School,W M Morris,3.40,Catering/Refreshments,Purchase W M Morrison
13/04/2022,Driver Training School,Tesco Stor,4.35,Catering/Refreshments,Purchase Tesco Store 2048
13/04/2022,Academy Management,Snowshock,33.97,Trng Equip Consumables,Purchase Snowshock Ltd
13/04/2022,Academy Management,Www.Nisbet,"1,499.99",Trng Equip Consumables,Purchase Www.Nisbets.Com
13/04/2022,Academy Management,Amznmktpla,28.91,Trng Equip Consumables,Purchase Amznmktplace
13/04/2022,Customer Services,Airdat Ltd,59.00,Driver Tests,Purchase Airdat Ltd
13/04/2022,Customer Services,Tesco Pfs,3.50,Meals for Training Courses,Purchase Tesco Pfs 3708
13/04/2022,Customer Services,W M Morris,2.52,Meals for Training Courses,Purchase W M Morrison Petrol
13/04/2022,Customer Services,W M Morris,3.61,Meals for Training Courses,Purchase W M Morrison Petrol
13/04/2022,Customer Services,W M Morris,6.55,Meals for Training Courses,Purchase W M Morrison
13/04/2022,Customer Services,Iz *four E,4.17,Meals for Training Courses,Purchase Iz *four Elements
14/04/2022,Chelston Vehicle Engineering,Amznmktpla,28.20,Garage Equipment,Purchase Amznmktplace
14/04/2022,Barnstaple Group,Lyreco UK,35.74,Printing/Stationery/Photocopy,Purchase Lyreco UK Ltd
14/04/2022,South Devon,Timpson Lt,44.00,Standard Equipment,Purchase Timpson Ltd
14/04/2022,Customer Services,Tesco Stor,3.50,Meals for Training Courses,Purchase Tesco Store 2487
14/04/2022,Customer Services,Tesco Pfs,3.70,Meals for Training Courses,Purchase Tesco Pfs 2620
14/04/2022,Customer Services,Southern C,7.50,Meals for Training Courses,Purchase Southern Co-Op 0373
16/04/2022,USAR Team,McDonalds,24.66,Catering/Refreshments,Purchase McDonalds 1588
17/04/2022,Chelston Vehicle Engineering,Amznmktpla,22.32,Garage Equipment,Purchase Amznmktplace
17/04/2022,Crownhill Vehicle Engineering,Amznmktpla,35.82,Garage Equipment,Purchase Amznmktplace
18/04/2022,Public Relations,Adobe Prod,8.42,ICT Application Services (Oth),Purchase Adobe Products
19/04/2022,ICT Delivery,Microsoft,183.11,ICT Infrastructure Service,Purchase Microsoft G009968532
19/04/2022,ICT Delivery,Manx Telec,19.66,ICT Mobile Telephony Service,Manx Telecom
19/04/2022,South Devon,Amz*hatsky,-7.15,Standard Equipment,Credit Voucher Amz*hatsky
19/04/2022,Driver Training School,Co-Op Grou,4.85,Catering/Refreshments,Purchase Co-Op Group 380548
19/04/2022,Academy Management,Post Offic,8.22,Trng Equip Consumables,Purchase Post Office Counter
19/04/2022,Assets & Systems,Smartsign,163.37,Licence fees,Purchase (USD 230.00) Smartsign
19/04/2022,Customer Services,Tesco Pfs,3.50,Meals for Training Courses,Purchase Tesco Pfs 2620
19/04/2022,Customer Services,Wm Morriso,3.77,Meals for Training Courses,Purchase Wm Morrisons Store
19/04/2022,Customer Services,Central Co,5.15,Meals for Training Courses,Purchase Central Convenient Stores
19/04/2022,West & North,My Fine De,37.70,Catering/Refreshments,Purchase My Fine Deli Ltd
20/04/2022,ICT Delivery,Amznmktpla,47.43,ICT Network Service,Extension Cable for WiFi
20/04/2022,Public Relations,Canva* 033,99.99,ICT Application Services (Oth),Purchase Canva* 03396-20973443
20/04/2022,Appledore,Amznmktpla,4.99,Standard Equipment,Purchase Amznmktplace
20/04/2022,Appledore,Amznmktpla,4.99,Postages,Postage
20/04/2022,Exeter Group,Lyreco UK,74.40,Printing/Stationery/Photocopy,Purchase Lyreco UK Ltd
20/04/2022,Taunton Group,Lyreco UK,61.23,Printing/Stationery/Photocopy,Purchase Lyreco UK Ltd
20/04/2022,Assets & Systems,Amznmktpla,16.39,Audio Visual Equipment,Purchase Amznmktplace
20/04/2022,Customer Services,W M Morris,3.57,Meals for Training Courses,Purchase W M Morrison Petrol
20/04/2022,Customer Services,Co-Op Grou,3.75,Meals for Training Courses,Purchase Co-Op Group 380548
20/04/2022,Customer Services,Home Barga,3.18,Meals for Training Courses,Purchase Home Bargains
21/04/2022,Estates,Amznmktpla,49.17,Standard Equipment,Purchase Amznmktplace
21/04/2022,Public Relations,Adobe Pr C,16.64,ICT Application Services (Oth),Purchase Adobe Pr Creative Cld
21/04/2022,Torquay,B & Q 1334,20.74,Unforseen Maintnce Mats Techn,Purchase B & Q 1334
21/04/2022,Customer Services,W M Morris,3.55,Meals for Training Courses,Purchase W M Morrison Petrol
21/04/2022,Customer Services,Tesco Stor,3.50,Meals for Training Courses,Purchase Tesco Store 2487
22/04/2022,ICT Delivery,Amznmktpla,24.16,ICT Network Service,10GBase-SR SFP+ Transceiver
22/04/2022,Academy Management,Amznmktpla,10.52,Trng Equip Consumables,Purchase Amznmktplace
22/04/2022,Customer Services,Ztl*four E,4.17,Meals for Training Courses,Purchase Ztl*four Elements Caterin
22/04/2022,Customer Services,Southern C,3.75,Meals for Training Courses,Purchase Southern Co-Op 0373
23/04/2022,ICT Delivery,Fasthosts,29.88,ICT Infrastructure Service,.org Domain Renewal - safesouthwest.org
23/04/2022,ICT Delivery,Fasthosts,10.49,ICT Infrastructure Service,.co.uk Domain Renewal - safesouthwest.co
23/04/2022,Public Relations,Hotjar,85.80,ICT Application Services (Oth),Purchase (EUR 99.00) Hotjar
24/04/2022,Crownhill Vehicle Engineering,Amznmktpla,104.76,Printing/Stationery/Photocopy,Purchase Amznmktplace
24/04/2022,Academy Management,Amznmktpla,18.27,Trng Equip Consumables,Purchase Amznmktplace
24/04/2022,Assets & Systems,Istock.Com,45.00,Licence fees,Purchase Istock.Com
25/04/2022,ICT Delivery,Www.Dhl In,28.10,ICT Mobs Service Equipment,Purchase Www.Dhl International
25/04/2022,Ilfracombe,Booker Lim,105.81,Wholetime Fireground Feeding,Purchase Booker Limited Barnstaple
25/04/2022,Academy Management,Sfl Mobile,421.38,Trng Equip Consumables,Purchase Sfl Mobile Radio Limited
25/04/2022,Academy Management,Amznmktpla,15.99,Trng Equip Consumables,Purchase Amznmktplace
25/04/2022,Assets & Systems,Zoom.Us 88,23.98,Licence fees,Purchase Zoom.Us 888-799-9666
25/04/2022,Customer Services,W M Morris,3.71,Meals for Training Courses,Purchase W M Morrison Petrol
25/04/2022,Customer Services,Co Op Grou,3.75,Meals for Training Courses,Purchase Co Op Group Food
25/04/2022,Customer Services,Co-Op Grou,3.75,Meals for Training Courses,Purchase Co-Op Group Petrol
25/04/2022,Customer Services,Cross Keys,4.60,Meals for Training Courses,Purchase Cross Keys Sf Connect
25/04/2022,Customer Services,Tesco Pfs,2.64,Meals for Training Courses,Purchase Tesco Pfs 3708
26/04/2022,Chelston Vehicle Engineering,Guardian S,25.83,Vehicle Consumables,Purchase Guardian Security
26/04/2022,Exeter Group,Post Offic,72.50,Postages,Purchase Post Office Counter
26/04/2022,USAR Team,McDonalds,33.65,Catering/Refreshments,Purchase McDonalds
26/04/2022,USAR Team,Text Anywh,244.80,Operational Equipment,Purchase Text Anywhere
26/04/2022,USAR Dog,Oscars Hon,61.00,USAR Dog Expenses,Purchase Oscars Honiton R/T Cur
26/04/2022,Plympton,C.E.F. (Ti,47.00,Unforseen Maintnce Mats Techn,Purchase C.E.F. (Tiverton)
26/04/2022,South Devon,Sainsburys,65.00,Catering/Refreshments,Purchase Sainsburys Smkts
26/04/2022,Driver Training School,Shell A38,4.59,Catering/Refreshments,Purchase Shell A38 West Bucklan
26/04/2022,Driver Training School,B & Q 1049,6.67,Standard Equipment,Purchase B & Q 1049
26/04/2022,Customer Services,Shell A38,5.51,Meals for Training Courses,Purchase Shell A38 West Bucklan
26/04/2022,Customer Services,Shell A38,6.11,Meals for Training Courses,Purchase Shell A38 West Bucklan
26/04/2022,Customer Services,Texaco Yea,4.93,Meals for Training Courses,Purchase Texaco Yealm Motor
26/04/2022,Customer Services,Tesco Pfs,5.00,Meals for Training Courses,Purchase Tesco Pfs 2620
26/04/2022,Customer Services,W M Morris,3.50,Meals for Training Courses,Purchase W M Morrison Petrol
27/04/2022,Estates,Halfords 0,26.25,Standard Equipment,Purchase Halfords 0875
27/04/2022,Chelston Vehicle Engineering,Yellow Shi,49.50,Garage Equipment,Purchase Yellow Shield Ltd
27/04/2022,Democratic Services,Lyreco UK,3.30,Printing/Stationery/Photocopy,Purchase Lyreco UK Ltd
27/04/2022,USAR Dog,Twc Academ,327.00,USAR Dog Expenses,Purchase (USD 397.00) Twc Academy
27/04/2022,Castle Cary,Amznmktpla,6.59,Printing/Stationery/Photocopy,Purchase Amznmktplace
27/04/2022,Academy Management,Amznmktpla,14.13,Trng Equip Consumables,Purchase Amznmktplace
27/04/2022,Academy Management,Amznmktpla,22.49,Trng Equip Consumables,Purchase Amznmktplace
27/04/2022,Academy Management,Amznmktpla,22.49,Trng Equip Consumables,Purchase Amznmktplace
27/04/2022,Academy Management,Amznmktpla,9.15,Trng Equip Consumables,Purchase Amznmktplace
27/04/2022,Academy Management,Amznmktpla,24.99,Trng Equip Consumables,Purchase Amznmktplace
27/04/2022,Academy Management,Amznmktpla,3.24,Trng Equip Consumables,Purchase Amznmktplace
27/04/2022,Academy Management,Amznmktpla,9.98,Trng Equip Consumables,Purchase Amznmktplace
27/04/2022,Academy Management,Amznmktpla,22.49,Trng Equip Consumables,Purchase Amznmktplace
27/04/2022,Academy Management,Amazon.Co.,7.87,Trng Equip Consumables,Purchase Amazon.Co.Uk
27/04/2022,Academy Management,Amznmktpla,24.99,Trng Equip Consumables,Purchase Amznmktplace
27/04/2022,Academy Management,Amazon.Co.,29.86,Trng Equip Consumables,Purchase Amazon.Co.Uk
27/04/2022,Academy Management,Amazon.Co.,2.63,Trng Equip Consumables,Purchase Amazon.Co.Uk
27/04/2022,Academy Management,Amznmktpla,21.64,Trng Equip Consumables,Purchase Amznmktplace
27/04/2022,Customer Services,Airdat Ltd,70.00,Driver Tests,Purchase Airdat Ltd
27/04/2022,Customer Services,Tesco Pfs,2.62,Meals for Training Courses,Purchase Tesco Pfs 3955
27/04/2022,Customer Services,Tesco Pfs,3.13,Meals for Training Courses,Purchase Tesco Pfs 4169
27/04/2022,Customer Services,Balasai Lt,3.38,Meals for Training Courses,Purchase Balasai Ltd
27/04/2022,Customer Services,Texaco Yea,4.75,Meals for Training Courses,Purchase Texaco Yealm Motor
27/04/2022,Customer Services,Lyreco UK,3.65,Printing/Stationery/Photocopy,Purchase Lyreco UK Ltd
28/04/2022,Academy Management,Amazon.Co.,29.86,Trng Equip Consumables,Purchase Amazon.Co.Uk
28/04/2022,Academy Management,Amznmktpla,35.33,Trng Equip Consumables,Purchase Amznmktplace
28/04/2022,Academy Management,Amznmktpla,9.15,Trng Equip Consumables,Purchase Amznmktplace
28/04/2022,Academy Management,Amznmktpla,9.98,Trng Equip Consumables,Purchase Amznmktplace
28/04/2022,Academy Management,Amznmktpla,19.98,Trng Equip Consumables,Purchase Amznmktplace
28/04/2022,Academy Management,Amznmktpla,29.95,Trng Equip Consumables,Purchase Amznmktplace
28/04/2022,Academy Management,Amznmktpla,14.15,Trng Equip Consumables,Purchase Amznmktplace
